Cogmind - Beta 13 @@@ ROGUE MODE // 2024.04.02 @ 13:12:03 Player: CogEmotions! Result: Destroyed by G-34 Mercenary with Small Laser Performance ------------- Evolutions (1) 500 Regions Visited (2) 400 Robots Destroyed (12) 60 Value Destroyed (297) 297 Prototype IDs (0) 0 Alien Tech Used (0) 0 Bonus (0) 0 TOTAL SCORE: 1257 Bonus ------- None Cogmind --------- Core Integrity 0/400 Matter 265/500 Energy 250/250 System Corruption 0% Temperature Cool (40) Movement Core (550) Ox10 Location -9/Materials Parts ------- > --- POWER (1) -------- Ion Engine > --- PROPULSION (2) --- (None) > --- UTILITY (4) ------ Large Storage Unit High-capacity Matter Pod Signal Interpreter > --- WEAPON (2) ------- Beam Cannon > --- INVENTORY (15) --- Small Storage Unit Medium Storage Unit Medium Storage Unit Visual Processing Unit Tractor Beam Light EM Pulse Cannon Peak State ------------ > --- POWER ------------ Ion Engine > --- PROPULSION ------- Aluminum Leg Aluminum Leg > --- UTILITY ---------- Medium Storage Unit High-capacity Matter Pod Signal Interpreter Weapon Shielding > --- WEAPON ----------- Light Assault Rifle Grenade Launcher > --- INVENTORY -------- Small Storage Unit Medium Storage Unit Large Storage Unit Visual Processing Unit Tractor Beam Light EM Pulse Cannon Plasma Cutter [Rating: 10] Favorites ----------- Power Ion Engine Engine Ion Engine Propulsion Aluminum Leg Leg Aluminum Leg Utility Small Storage Unit Device ECM Suite Storage Small Storage Unit Processor Signal Interpreter Protection Weapon Shielding Weapon Light Assault Rifle Energy Gun EM Pulse Gun Energy Cannon Beam Cannon Ballistic Gun Light Assault Rifle Launcher Grenade Launcher Special Weapon Plasma Cutter Build | -11 -10 -9 ------- Run | Yrd Mat Mat Slots Evolved 2 | . . 2 Power . | . . . Propulsion . | . . . Utility 2 | . . 2 Weapon . | . . . Parts Attached 17 | 6 2 9 Power 2 | 1 . 1 Engine 2 | 1 . 1 Core . | . . . Reactor . | . . . Propulsion 2 | 2 . . Treads . | . . . Leg 2 | 2 . . Wheel . | . . . Hover . | . . . Flight . | . . . Utility 8 | 1 2 5 Device 2 | . 2 . Storage 4 | 1 . 3 Processor 1 | . . 1 Hackware . | . . . Protection 1 | . . 1 Artifact . | . . . Weapon 5 | 2 . 3 Energy Gun 1 | 1 . . Energy Cannon 1 | . . 1 Ballistic Gun 1 | 1 . . Ballistic Cannon . | . . . Launcher 1 | . . 1 Special Weapon 1 | . . 1 Impact Weapon . | . . . Slashing Weapon . | . . . Piercing Weapon . | . . . Special Melee Weapon . | . . . Unidentified Prototypes . | . . . Parts Lost 9 | . . 9 Power 1 | . . 1 Propulsion 2 | . . 2 Utility 2 | . . 2 Weapon 4 | . . 4 Highest Loss Streak 7 | . . 7 To Critical Strikes . | . . . Average Slot Usage (%) 93 | . 94 92 Engine 12 | . 14 9 Leg 23 | . 28 18 Device 5 | . 8 1 Storage 17 | . 14 22 Processor 4 | . . 8 Protection 4 | . . 9 Energy Gun 8 | . 14 1 Ballistic Gun 11 | . 14 9 Launcher 3 | . . 8 Naked Turns . | . . . Heaviest Build 34 | 13 15 34 Greatest Support 20 | 20 20 20 Greatest Overweight (x) 10 | . . 10 Average Overweight (x) . | . . . Largest Inventory Capacity 15 | 8 8 15 Average Capacity 10 | 7 8 12 Most Carried 8 | 5 6 8 Average Carried 4 | . 2 6 Final Capacity 15 | 8 8 15 Final Carried 6 | . 6 6 Class Distribution -------------------- 100% | Mutant Dominant Class ---------------- Mutant | -10/Materials Mutant | -9/Materials Resources | -11 -10 -9 ----------- Run | Yrd Mat Mat Matter Collected 416 | 76 212 128 Remotely 150 | . 150 . Salvage Created 289 | . 50 239 Parts 24 | . 4 20 Haulers Intercepted . | . . . Recyclers Shooed . | . . . Parts Field Recycled . | . . . Retrieved Matter . | . . . Parts Self-Destructed . | . . . Prevented . | . . . Kills | -11 -10 -9 ------- Run | Yrd Mat Mat Combat Hostiles Destroyed 10 | . 1 9 Guns 3 | . 1 2 Cannons 2 | . . 2 AOE 5 | . . 5 Classes Destroyed 5 | . 1 4 Builder 1 | . . 1 Watcher 1 | . . 1 Swarmer 4 | . . 4 Grunt 4 | . 1 3 Sentry 2 | . . 2 Best Kill Streak 5 | . 1 5 Combat Bots Only 4 | . 1 4 Max Kills in Single Turn 2 | . 1 2 Gunslinging . | . . . Exploded 2 | . . 2 Melee . | . . . Uniques/NPCs Destroyed . | . . . Combat | -11 -10 -9 -------- Run | Yrd Mat Mat Hostile Shots Fired 104 | . 6 98 Missed 23 | . 4 19 Damage Taken 1057 | . 23 1034 Core 403 | . . 403 Absorbed by Shields . | . . . Redirected to Shielding 51 | . . 51 Core Remaining (%) 100 | 100 100 . Volleys Fired 35 | . 7 28 Largest 2 | . 2 2 Hottest 80 | . 60 80 Shots Fired 57 | . 14 43 Gun 36 | . 14 22 Cannon 10 | . . 10 Launcher 10 | . . 10 Special 1 | . . 1 Kinetic 25 | . 7 18 Thermal 11 | . . 11 Explosive 10 | . . 10 Electromagnetic 11 | . 7 4 Robot Hit Streak 10 | . 3 10 Robot Miss Streak 3 | . 3 3 Penetration Max . | . . . Secondary Targets 1 | . . 1 Max Gunslinging Chain 1 | . . 1 Shots Hit Robots 31 | . 6 25 Core Hits 26 | . 2 24 Critical Kills . | . . . Critical Parts Destroyed . | . . . Critical Strikes . | . . . Melee Attacks . | . . . Impact . | . . . Slashing . | . . . Piercing . | . . . Sneak Attacks . | . . . Combat Hostiles . | . . . Follow-up Attacks . | . . . Damage Inflicted 717 | . 70 647 Guns 149 | . 66 83 Cannons 142 | . . 142 Explosions 422 | . . 422 Melee . | . . . Ramming 4 | . 4 . Kinetic 90 | . 29 61 Thermal 142 | . . 142 Explosive 422 | . . 422 Electromagnetic 59 | . 37 22 Impact . | . . . Slashing . | . . . Piercing . | . . . Highest Corruption 3 | . 3 . Average Corruption 2 | . 2 . Corruption Purged . | . . . Corruption Blocked . | . . . Effects 8 | . 8 . Message Errors 3 | . 3 . Matter Fused 1 | . 1 . Heat Flow Errors 1 | . 1 . Energy Discharges 1 | . 1 . Data Loss (minor) 2 | . 2 . Overload Shots . | . . . Overflow Damage . | . . . Projectiles . | . . . Explosions . | . . . Melee . | . . . Knockbacks . | . . . Impact . | . . . Kinetic . | . . . Secondary . | . . . Self-Inflicted Damage 122 | . . 122 Shots 4 | . . 4 Rammed . | . . . Targets Rammed 1 | . 1 . Kicked 1 | . 1 . Crushed . | . . . Highest Temperature 255 | . 255 46 Average Temperature 37 | . 73 14 Received Heat Transfer 279 | . 12 267 Effects 1 | . 1 . Energy Bleed 1 | . 1 . Siege Activations . | . . . Robots Corrupted . | . . . Combat Hostiles . | . . . Parts Fried . | . . . Impact Corruptions . | . . . Robots Melted . | . . . Combat Hostiles . | . . . Parts Melted 2 | . . 2 Heat Transferred 296 | . . 296 Parts Sabotaged . | . . . Parts Stolen . | . . . Parts Stripped . | . . . Power Chain Reactions . | . . . Alert | -11 -10 -9 ------- Run | Yrd Mat Mat Peak Influence 221 | . 30 221 Initial . | . . . Average 64 | . 15 128 Maximum Alert Level 1 | . . 1 Low Security (%) 86 | 100 100 69 Level 1 13 | . . 30 Level 2 . | . . . Level 3 . | . . . Level 4 . | . . . Level 5 . | . . . High Security . | . . . Max Security . | . . . Squads Dispatched 3 | . 1 2 Investigation 3 | . 1 2 Extermination . | . . . Reinforcement . | . . . Assault . | . . . Garrison . | . . . Intercept . | . . . Searches Triggered . | . . . Construction Impeded . | . . . Haulers Reinforced . | . . . Active Scanning Responses . | . . . Cargo Convoy Interrupts . | . . . Stealth | -11 -10 -9 --------- Run | Yrd Mat Mat Distress Signals 4 | . 2 2 Communications Jammed . | . . . Distress Signals . | . . . Times Spotted 20 | . 1 19 Peak Tracking Total 7 | . 1 7 Tactical Retreats 3 | . . 3 Traps | -11 -10 -9 ------- Run | Yrd Mat Mat Traps Triggered 2 | . 2 . Indirectly . | . . . Trap Hack Attempts . | . . . Triggered . | . . . Disarmed . | . . . Reprogrammed . | . . . Reused . | . . . Traps Extracted . | . . . Installed . | . . . Triggered . | . . . Machines | -11 -10 -9 ---------- Run | Yrd Mat Mat Machines Disabled 1 | . . 1 Max in Single Turn 1 | . . 1 Machines Repaired . | . . . Machines Dismantled . | . . . Machines Sabotaged . | . . . Overloaded Fab Kills . | . . . Hacking | -11 -10 -9 --------- Run | Yrd Mat Mat Machines Accessed 4 | . 2 2 Terminals 4 | . 2 2 Fabricators . | . . . Repair Stations . | . . . Recycling Units . | . . . Scanalyzers . | . . . Garrison Access . | . . . Total Hacks 14 | . 6 8 Successful 7 | . 3 4 Failed 6 | . 2 4 Catastrophic 1 | . . 1 Database Lockouts 1 | . 1 . Manual . | . . . Terminals 14 | . 6 8 Fabricators . | . . . Repair Stations . | . . . Recycling Units . | . . . Scanalyzers . | . . . Garrison Access . | . . . Terminal Hacks 7 | . 3 4 Record 6 | . 3 3 Locate Traps 1 | . . 1 Fabricator Hacks . | . . . Repair Station Hacks . | . . . Recycling Unit Hacks . | . . . Scanalyzer . | . . . Garrison Access Hacks . | . . . Unauthorized Hacks . | . . . Terminals . | . . . Fabricators . | . . . Repair Stations . | . . . Recycling Units . | . . . Scanalyzers . | . . . Garrison Access . | . . . Data Cores Recovered . | . . . Used . | . . . Hacking Detections 4 | . 2 2 Full Trace Events 3 | . 1 2 Feedback Events . | . . . Feedback Blocked . | . . . Robot Schematics Acquired . | . . . Robots Built . | . . . Authchips . | . . . Time . | . . . Total Robot Build Rating . | . . . Part Schematics Acquired . | . . . Parts Built . | . . . Authchips . | . . . Time . | . . . Total Part Build Rating . | . . . Parts Repaired . | . . . Time . | . . . Parts Recycled . | . . . Recycled Matter . | . . . Retrieved Matter . | . . . Retrieved Components . | . . . Parts Scanalyzed . | . . . Part Schematics Acquired . | . . . Parts Damaged . | . . . Bothacking | -11 -10 -9 ------------ Run | Yrd Mat Mat Used RIF Installer . | . . . Robots Hacked . | . . . Non-combat . | . . . Combat . | . . . Robot Hacks Applied . | . . . Relay Couplers Released . | . . . Fabnet Peak Effective % . | . . . Robots Rewired . | . . . Allies Hacked . | . . . Hacks Repelled . | . . . Allies | -11 -10 -9 -------- Run | Yrd Mat Mat Total Allies . | . . . Largest Group . | . . . Highest-Rated Group . | . . . Highest-Rated Ally . | . . . Total Orders . | . . . Ally Attacks . | . . . Total Damage . | . . . Kills . | . . . Allies Corrupted . | . . . Allies Melted . | . . . Intel | -11 -10 -9 ------- Run | Yrd Mat Mat Robot Analysis Total . | . . . Derelict Logs Recovered . | . . . Drone Launches . | . . . Drone Recoveries . | . . . Exploration | -11 -10 -9 ------------- Run | Yrd Mat Mat Turns Passed 1087 | 65 540 482 Spaces Moved 671 | 48 405 218 Core 36 | 29 . 7 Treads . | . . . Legs 635 | 19 405 211 Wheels . | . . . Hover . | . . . Flight . | . . . Fastest Speed 50 | 50 120 120 Average Speed 137 | 77 120 181 Slowest Speed 550 | 120 120 550 Overloaded Moves . | . . . Propulsion Burnouts . | . . . Robots Hopped . | . . . Cave-ins Triggered . | . . . Exploration Rate (%) 32 | 4 72 20 Regions Visited 2 Branch Regions . Pre-discovered Areas . | . . . Known Exits Taken . | . . . Unknown Exits Taken 2 | 1 1 . Scrap Searched . | . . . Spaces Dug . | . . . Terrain Destroyed 70 | . . 70 Melee . | . . . Projectile . | . . . AOE 70 | . . 70 Terrain Rammed . | . . . Walls Destroyed . | . . . Machines Disabled . | . . . Actions | -11 -10 -9 --------- Run | Yrd Mat Mat Total 782 | 75 445 262 Wait 41 | 17 24 . Move 669 | 47 404 218 Hop . | . . . Pick Up 19 | 5 7 7 Fast Attach 1 | 1 . . Attach 13 | 5 1 7 Detach . | . . . Swap 3 | . 1 2 Drop . | . . . Fire 35 | . 7 28 Melee . | . . . Ram . | . . . Kick 1 | . 1 . Crush . | . . . Escape Stasis . | . . . Rewire . | . . . Trap . | . . . Miscellaneous . | . . . Route ------- -11/Scrapyard -10/Materials (discovered 2 exits: *Mat x2) -9/Materials History --------- Turn | Location | Event 11 | -11/Scrapyard | Discovered new exit (range 16) 66 | -11/Scrapyard | Entered Materials 212 | -10/Materials | Discovered new exit (range 11) 317 | -10/Materials | Build established: Mutant 335 | -10/Materials | Central database locked down 565 | -10/Materials | Discovered new exit (range 13) 606 | -10/Materials | Entered another Materials area 606 | -9/Materials | Evolved 2 slots: Utility x2 1021 | -9/Materials | Core integrity fell below 50% 1030 | -9/Materials | Core integrity fell below 20% 1066 | -9/Materials | Lost 7 parts (1p2n1u3w) 1088 | -9/Materials | Destroyed by G-34 Mercenary with Small Laser Last Messages --------------- Aluminum Leg destroyed. Ion Engine destroyed. Aluminum Leg destroyed. G-34 Mercenary destroyed. The unstable cave ceiling collapses. G-34 Mercenary destroyed. Weapon Shielding destroyed. Grenade Launcher destroyed. Lgt. Assault Rifle destroyed. Y-45 Defender destroyed. Plasma Cutter destroyed. U-05 Engineer destroyed. The unstable cave ceiling collapses. Lgt. Armor Plating melted. Heat Sink melted. Y-45 Defender destroyed. Acquired 35 matter. Acquired Ion Engine. Acquired 25 matter. Electrolysis Chamber disabled. Map ----- +----------------------------------------------------+ | ???##+#?????? #???????????????????????????????? | | ???# ###### #???????????????????????????????? | | ???## # * #???????????????????????????????? | | #### # #???????????????????????????????? | | = #???????????????????????????????? | | =* #???????????????????????????????? | | [ # ####????????????????????????????????? | | ###### ??????????????????????????????? | | # = #???? ?????????????????????????????? | | # #?????????????????????????????????????? | | * # #?????????????????????????????????????? | | # ! # #?????????????????????????????????????? | | ! # #?????????????????????????????????????? | | # "" #?????????????????????????????????????? | | # ## # Y" #?????????????????????????????????????? | | # #### "" #?????????????????????????????????????? | | # #??# #?????????????????????????????????????? | | # #?####+##???????????#####?????????????????????? | | # #?# #???????????# #?????????????????????? | | # #?# !! #???????????# #?????????????????????? | | # #?# ! ### ######### #?????????????????????? | | ## ### ! # ##????????????????????? | | # # # #????????????????????? | | # # #? """ [ #?????????????????????? | | # + #?""""" #=[[ = ######????????????????? | | # # #??"""" % @ # #????????????????? | | ## ## #??"""" ! [ #????????????????? | | ?# ## #??""" %= #????????????????? | | ## ## # # = "" #????????????????? | | ## # "T" # """ #????????????????? | | ####+############ g""" #????????????????? | | ########### #????????????????? | | ! ???????????? | | a % ???????????? | | === ]] ########## ???????????? | | ## === [ ##########????????????????????????? | | ## == # #???????????????????????????? | | # ##???????????????????????????? | | # = ##############??????????????? | | ## ### ##+## # + T #??????????????? | | ##+#### # # # = #??????????????? | | # # ^# # #??????????????? | | " + # + !#??????????????? | | T # # # #??????????????? | | " # # ##+## # """"" #??????????????? | | ##### ## # """"" #??????????????? | | #???######### """ # """"" #??????????????? | | #######???????????# """ # #??????????????? | | ??????????????????# """ ##########??????????????? | | ??????????????????# #???????????????????????? | +----------------------------------------------------+ Best States ------------- Heat Dissipation 28 Energy Generation 10 Energy Capacity 250 Matter Stores 300 Matter Capacity 500 Sight Range 16 Terrain Scan Density 10 ECM Strength 1 Weapon Shielding 33 Evasion (%) 55 Item Schematics ----------------- None Robot Schematics ------------------ None Fabricated ------------ Nothing Alien Tech Used ----------------- None Achievements -------------- None Challenges ------------ None Game ------ Seed PortableAerolevCompactor Manual? 0 Play Time 00:19:54 Cumulative 2.4 hours Start 2024.04.02 @ 12:32:41 End 2024.04.02 @ 13:12:03 Sessions 1 Manual Loads 0 Difficulty Rogue Special Mode None Game No. 5 Rogue 5 Adventurer 0 Explorer 0 Win Type - Total 0 Types 0/0/0/0/0/0/0/0/0 Lore% 1 Gallery% 5 Achievement% 4 Wizard Run 0 Options --------- Layout 1 ASCII 0 Keyboard 0 Movement Mouse Keybinds 0 Fullscreen 1 Font 24/Smallcaps Map View 50x35 Zoom Use 0% Tactical HUD 0 Map Filters NONE Filters NONE Steam 1 RUN: 6482c270-1471-4d7a-a737-534dbb4ed9e8